bitfinex-derivatives/quotes_SOLF0:USTF0_20250712
["timestamp","ask_amount","ask_price","bid_price","bid_amount"]
[1752286168115,9.40050768,163.51,163.5,3.51]
[1752286168419,3.28690768,163.51,163.5,3.51]
[1752286169418,5.70061875,163.51,163.48,3.51]
[1752286169612,3.24,163.5,163.48,3.51]
[1752286171318,3.24,163.49,163.48,3.51]
[1752286175723,5.65371107,163.49,163.48,3.51]
[1752286176022,5.65371107,163.49,163.45,3.51]
[1752286176023,3.24,163.48,163.45,3.51]
[1752286176213,2.41371107,163.47,163.45,3.51]
[1752286176416,3.24,163.46,163.45,3.51]
[1752286179721,18.35,163.56,163.45,3.51]
[1752286179918,3.24,163.47,163.45,3.51]
[1752286180528,3.24,163.47,163.45,9.6257]
[1752286180722,3.24,163.47,163.46,3.51]
[1752286181922,9.3551,163.47,163.46,3.51]
[1752286182426,6.1151,163.47,163.45,3.51]
[1752286182626,11.76996367,163.46,163.45,3.51]
[1752286182826,11.76996367,163.46,163.43,6.1165]
[1752286183028,3.24,163.45,163.44,3.51]
[1752286183428,3.24,163.44,163.42,3.51]
[1752286183617,3.24,163.43,163.42,3.51]
[1752286184223,8.53006367,163.46,163.42,9.6268]
[1752286184528,3.24,163.44,163.43,3.51]
[1752286185729,3.24,163.44,163.43,9.4166]
[1752286185929,3.42,163.45,163.44,3.3]
[1752286187531,9.5359,163.45,163.44,3.3]
[1752286189429,3.42,163.45,163.44,3.3]
[1752286198335,3.42,163.46,163.45,3.3]
[1752286199637,2.41454624,163.49,163.45,3.3]
[1752286199835,18.35,163.57,163.46,3.3]
[1752286199836,3.42,163.48,163.46,3.3]
[1752286200645,3.42,163.48,163.47,3.3]
[1752286201836,9.5347,163.48,163.47,3.3]
[1752286204548,3.42,163.48,163.47,3.3]
[1752286204944,3.42,163.53,163.48,3.3]
[1752286205238,3.42,163.52,163.51,3.3]
[1752286205439,3.46474518,163.52,163.51,3.3]
[1752286205638,0.04474518,163.52,163.51,3.3]
[1752286206340,0.04474518,163.52,163.51,11.82814624]
[1752286206937,176.46,163.58,163.54,3.3]
[1752286207138,3.42,163.57,163.51,3.3]
[1752286207541,3.42,163.56,163.52,3.3]
[1752286207840,3.42,163.57,163.52,3.3]
[1752286208038,3.42,163.57,163.49,8.81952553]
[1752286208245,3.42,163.57,163.53,3.3]
[1752286208441,3.42,163.57,163.51,3.3]
[1752286208645,6.112,163.56,163.52,6.1131]
[1752286209138,3.42,163.55,163.53,3.3]
[1752286209545,3.42,163.54,163.53,3.3]
[1752286216951,3.42,163.54,163.53,9.4129]
[1752286217340,3.37,163.56,163.53,3.3]
[1752286217752,3.37,163.56,163.54,6.1124]
[1752286217950,3.37,163.56,163.55,3.35]
[1752286218653,9.4818,163.56,163.55,3.35]
[1752286218847,3.37,163.57,163.54,3.35]
[1752286219353,3.37,163.57,163.53,3.3898572]
[1752286219953,3.37,163.55,163.53,3.3898572]
[1752286220150,3.37,163.55,163.53,0.0398572]
[1752286220652,9.4825,163.54,163.53,0.0398572]
[1752286221046,3.37,163.54,163.53,0.0398572]
[1752286223156,3.37,163.54,163.53,3.3898572]
[1752286224355,3.37,163.54,163.53,9.5027572]
[1752286224556,6.112,163.56,163.53,9.5027572]
[1752286224760,3.37,163.55,163.54,3.35]
[1752286225755,3.37,163.55,163.54,9.4625]
[1752286225955,3.37,163.55,163.54,3.35]
[1752286226758,6.1115,163.57,163.54,6.1124]
[1752286227057,3.37,163.56,163.55,3.35]
[1752286227657,9.4818,163.56,163.55,3.35]
[1752286228558,3.37,163.56,163.55,3.35]
[1752286230068,9.4818,163.56,163.55,3.35]
[1752286231560,3.37,163.56,163.55,3.35]
[1752286232064,9.4818,163.56,163.55,3.35]
[1752286232565,3.37,163.56,163.55,3.35]
[1752286234461,3.37,163.55,163.53,3.3898572]
[1752286235461,3.37,163.54,163.53,3.3898572]
[1752286236062,3.37,163.53,163.5,3.35]
[1752286236257,3.37,163.52,163.5,3.35]
[1752286236453,9.4835,163.52,163.5,3.35]
[1752286236663,3.37,163.51,163.5,3.35]
[1752286237065,3.37,163.51,163.48,8.52655522]
[1752286237265,3.37,163.51,163.49,3.35]
[1752286238360,3.37,163.51,163.48,8.52675522]
[1752286238561,3.37,163.51,163.5,3.35]
[1752286242163,3.37,163.51,163.5,9.464]
[1752286242863,3.37,163.53,163.51,6.1135]
[1752286243066,0.04399861,163.52,163.51,6.1135]
[1752286243664,0.04399861,163.52,163.51,9.4635]
[1752286246066,3.26,163.56,163.54,6.1124]
[1752286246270,3.26,163.56,163.55,3.31]
[1752286246566,6.1119,163.56,163.52,3.31]
[1752286246771,3.26,163.54,163.53,9.4229]
[1752286247268,3.26,163.54,163.51,3.76850096]
[1752286247269,3.26,163.55,163.54,9.4225]
[1752286247472,3.26,163.55,163.54,3.31]
[1752286250871,3.26,163.55,163.54,9.4225]
[1752286252775,3.26,163.55,163.54,3.31]
[1752286254075,3.26,163.57,163.54,3.31]
[1752286254768,3.26,163.57,163.54,5.0507832]
[1752286254967,3.26,163.57,163.55,3.31]
[1752286256073,3.26,163.57,163.55,9.4219]
[1752286256367,3.26,163.57,163.56,3.31]
[1752286258685,3.26,163.56,163.52,3.35452271]
[1752286259680,6.1124,163.55,163.53,3.31]
[1752286259984,3.26,163.54,163.53,3.31]
[1752286260287,3.26,163.54,163.53,9.4229]
[1752286260681,3.26,163.54,163.53,3.31]
[1752286260885,3.26,163.54,163.52,3.35452271]
[1752286261080,3.26,163.54,163.52,0.04452271]
[1752286261588,3.26,163.56,163.52,0.04452271]
[1752286262184,6.1128,163.54,163.52,0.04452271]
[1752286262385,3.26,163.53,163.52,0.04452271]
[1752286263186,3.26,163.53,163.52,3.35452271]
[1752286267494,3.26,163.53,163.52,9.46782271]
[1752286268296,3.26,163.53,163.52,3.35452271]
[1752286268990,9.3729,163.53,163.52,3.35452271]
[1752286269296,3.26,163.53,163.52,3.35452271]
[1752286276699,3.26,163.53,163.52,0.04452271]
[1752286276903,3.26,163.53,163.49,5.0507832]
[1752286277095,3.3,163.52,163.46,5.0507832]
[1752286277301,3.3,163.52,163.48,6.1147]
[1752286277500,3.3,163.52,163.48,3.39]
[1752286278002,3.3,163.5,163.48,3.39]
[1752286278795,9.4143,163.5,163.48,3.39]
[1752286279003,3.3,163.49,163.48,3.39]
[1752286286409,3.3,163.49,163.48,9.5048]
[1752286287007,3.3,163.5,163.49,3.39]
[1752286287210,6.1133,163.52,163.49,6.1144]
[1752286287410,3.3,163.51,163.5,3.39]
[1752286288214,3.3,163.51,163.5,9.504]
[1752286288511,3.3,163.52,163.51,3.39]
[1752286291005,9.4133,163.52,163.51,3.39]
[1752286292308,3.3,163.52,163.51,3.39]
[1752286295814,9.4133,163.52,163.51,3.39]
[1752286298013,3.3,163.51,163.48,3.39]
[1752286298914,3.3,163.49,163.47,8.52871863]
[1752286299111,3.3,163.49,163.48,3.39]
[1752286300114,3.3,163.49,163.48,9.5048]
[1752286300316,3.3,163.49,163.48,3.39]
[1752286302812,3.3,163.49,163.48,9.5048]
[1752286305111,3.51629593,163.5,163.49,3.58]
[1752286307522,3.51629593,163.5,163.49,9.6944]
[1752286307715,0.04629593,163.5,163.49,14.834445]
[1752286309124,3.51629593,163.5,163.49,8.720045]
[1752286309314,3.51629593,163.5,163.49,3.58]
[1752286311218,3.51629593,163.5,163.48,5.140045]
[1752286311419,3.51629593,163.5,163.48,3.58]
[1752286312122,3.51629593,163.5,163.48,9.6947]
[1752286312721,3.51629593,163.5,163.49,3.58]
[1752286315727,3.51629593,163.5,163.49,9.6944]
[1752286319630,3.51629593,163.5,163.49,3.58]
[1752286319826,3.51629593,163.5,163.48,11.254645]
[1752286320028,3.51629593,163.5,163.48,5.140045]
[1752286320231,3.47,163.49,163.47,14.835045]
[1752286321533,3.47,163.49,163.47,5.140045]
[1752286321926,5.88381014,163.48,163.44,6.79916811]
[1752286322125,3.47,163.47,163.43,3.58]
[1752286322630,3.47,163.47,163.42,6.79916811]
[1752286322631,3.47,163.47,163.44,3.58]
[1752286322829,6.1157,163.46,163.44,3.58]
[1752286323026,3.47,163.45,163.44,3.58]
[1752286323926,3.51688987,163.47,163.44,3.58]
[1752286324127,3.51688987,163.47,163.46,5.99381014]
[1752286324834,3.51688987,163.47,163.46,3.58]
[1752286325330,0.04688987,163.47,163.46,3.58]
[1752286325627,0.04688987,163.47,163.46,9.6955]
[1752286327533,3.51688987,163.47,163.46,9.6955]
[1752286329131,3.51688987,163.47,163.42,6.79916811]
[1752286329334,3.51688987,163.47,163.41,3.7719123]
[1752286329636,3.51688987,163.47,163.43,3.58]
[1752286329834,3.51688987,163.47,163.43,6.1164]
[1752286329835,3.47,163.45,163.43,6.1164]
[1752286330034,3.47,163.45,163.44,3.58]
[1752286331637,3.47,163.45,163.44,9.6962]
[1752286333437,3.47,163.46,163.45,6.1159]
[1752286333636,3.47,163.46,163.45,9.6959]
[1752286333937,3.47,163.46,163.45,3.58]
[1752286335839,3.47,163.46,163.45,9.6959]
[1752286337134,0.04688987,163.47,163.46,9.6855]
[1752286337437,3.51688987,163.47,163.46,9.6855]
[1752286341742,0.04688987,163.47,163.46,9.6855]
[1752286342839,3.51688987,163.47,163.46,9.6855]
[1752286344743,0.04688987,163.47,163.46,9.6855]
[1752286348045,0.04688987,163.47,163.46,13.4574123]
[1752286348242,3.47,163.51,163.5,9.684]
[1752286348443,3.47,163.51,163.5,3.57]
[1752286350250,3.47,163.51,163.5,9.684]
[1752286350551,3.47,163.51,163.5,3.57]
[1752286354755,3.47,163.54,163.5,3.57]
[1752286355053,3.47,163.54,163.49,3.61043577]
[1752286355245,3.47,163.53,163.5,3.57]
[1752286355856,3.47,163.52,163.51,3.57]
[1752286357761,3.47,163.52,163.51,9.6836]
[1752286357959,3.47,163.54,163.52,3.57]
[1752286360160,3.47,163.54,163.53,3.57]
[1752286360465,176.08,163.6,163.53,3.57]
[1752286360664,6.1113,163.58,163.55,3.57]
[1752286361166,6.1113,163.58,163.55,3.60877853]
[1752286362365,3.47,163.57,163.55,3.60877853]
[1752286363562,3.47,163.56,163.55,0.03877853]
[1752286364169,9.5818,163.56,163.55,0.03877853]
[1752286364370,3.47,163.56,163.55,0.03877853]
[1752286365770,3.47,163.56,163.55,3.42877853]
[1752286366170,9.5818,163.56,163.55,3.42877853]
[1752286367467,3.47,163.56,163.55,3.42877853]
[1752286367772,3.57,163.58,163.55,3.42877853]
[1752286368569,3.57,163.57,163.56,3.39]
[1752286370272,9.6814,163.57,163.56,3.39]
[1752286371773,3.57,163.57,163.56,3.39]
[1752286378471,6.1118,163.56,163.55,0.03877853]
[1752286378776,185.6818,163.56,163.55,3.42877853]
[1752286378978,179.57,163.56,163.55,3.42877853]
[1752286379179,176.0,163.56,163.55,3.42877853]
[1752286381279,179.57,163.56,163.55,3.42877853]
[1752286381579,185.6818,163.56,163.55,3.42877853]
[1752286382579,179.57,163.56,163.55,3.42877853]
[1752286383981,185.6818,163.56,163.55,3.42877853]
[1752286399797,176.0,163.56,163.55,3.42877853]
[1752286400798,176.0,163.56,163.55,5.84028658]
[1752286401199,9.6815,163.57,163.55,11.95238658]
[1752286401399,185.6415,163.57,163.56,3.57]
[1752286403100,179.53,163.57,163.56,3.57]
[1752286403505,175.96,163.57,163.56,3.57]
[1752286404400,179.53,163.57,163.56,3.57]
[1752286405102,185.6414,163.57,163.56,3.57]
[1752286406698,6.1118,163.56,163.55,0.03877853]
[1752286406903,9.6818,163.56,163.55,3.60877853]
[1752286410303,6.1118,163.56,163.55,3.60877853]
[1752286410504,182.0715,163.57,163.55,3.60877853]
[1752286411708,175.96,163.57,163.55,9.72087853]
[1752286412006,175.96,163.57,163.56,2.41124353]
[1752286412202,175.96,163.57,163.56,5.98124353]
[1752286417015,175.96,163.57,163.56,12.09304353]
[1752286417616,3.57,163.59,163.57,3.57]
[1752286417916,9.6808,163.59,163.57,3.57]
[1752286419312,3.57,163.59,163.58,3.57]
[1752286420012,9.6806,163.59,163.58,3.57]
[1752286422616,9.6804,163.6,163.58,3.57]
[1752286423520,6.1104,163.6,163.58,3.57]
[1752286423820,3.57,163.59,163.58,3.57]
[1752286424423,9.6806,163.59,163.58,3.57]
[1752286425519,3.57,163.59,163.58,3.57]
[1752286426212,9.5604,163.6,163.58,3.57]
[1752286426414,6.1106,163.59,163.58,3.57]
[1752286426619,9.5606,163.59,163.58,3.57]
[1752286427327,3.45,163.57,163.56,3.5]
[1752286427821,6.1118,163.56,163.55,3.53877853]
[1752286428027,9.5618,163.56,163.55,3.53877853]
[1752286428427,3.45,163.56,163.55,3.53877853]
[1752286429126,9.5618,163.56,163.55,3.53877853]
[1752286429524,3.45,163.56,163.55,3.53877853]
[1752286432131,9.5618,163.56,163.55,3.53877853]
[1752286432325,175.9,163.57,163.55,3.53877853]
[1752286432525,3.45,163.56,163.55,3.53877853]
[1752286433633,9.5618,163.56,163.55,3.53877853]
[1752286435133,3.45,163.56,163.55,3.53877853]
[1752286435634,179.35,163.57,163.55,3.53877853]
[1752286436134,175.9,163.57,163.55,3.53877853]
[1752286436335,179.35,163.57,163.55,3.53877853]
[1752286437035,185.4614,163.57,163.55,3.53877853]
[1752286439238,185.4614,163.57,163.55,9.65087853]
[1752286439437,185.4614,163.57,163.56,3.5]
[1752286439639,179.35,163.57,163.56,3.5]
[1752286440137,175.9,163.57,163.56,3.5]
[1752286440736,175.9,163.57,163.56,9.6118]
[1752286440938,179.35,163.57,163.56,9.6118]
[1752286441134,179.35,163.57,163.56,3.5]
[1752286441634,175.9,163.57,163.56,3.5]
[1752286443439,185.4614,163.57,163.56,3.5]
[1752286448846,6.1118,163.56,163.55,3.53877853]
[1752286449046,9.5618,163.56,163.55,3.53877853]
[1752286451548,3.45,163.56,163.55,3.53877853]
[1752286452049,185.4615,163.57,163.55,9.65087853]
[1752286452250,175.9,163.57,163.56,3.5]
[1752286455251,179.28,163.57,163.56,3.5]
[1752286455451,185.3914,163.57,163.56,3.5]
[1752286456148,179.28,163.57,163.56,3.5]
[1752286456360,175.9,163.57,163.56,3.5]
[1752286458148,175.9,163.57,163.56,9.6118]
[1752286458555,175.9,163.57,163.56,12.02304353]
[1752286458756,9.4907,163.59,163.57,9.3813]
[1752286458955,3.38,163.59,163.58,3.27]
[1752286459158,3.38,163.6,163.58,3.27]
[1752286459555,9.4903,163.6,163.58,3.27]
[1752286461056,9.4906,163.59,163.58,3.27]
[1752286463059,5.79124353,163.6,163.58,3.27]
[1752286463453,3.38,163.59,163.58,3.27]
[1752286464259,8.52174353,163.6,163.58,3.27]
[1752286464456,11.90174353,163.6,163.58,3.27]
[1752286464857,3.38,163.59,163.58,3.27]
[1752286465760,9.4906,163.59,163.58,3.27]
[1752286472464,6.111,163.58,163.57,3.3100839]
[1752286472664,9.491,163.58,163.57,3.3100839]
[1752286475367,3.38,163.58,163.57,3.3100839]
[1752286475569,9.4908,163.59,163.57,3.3100839]
[1752286476669,6.111,163.58,163.57,3.3100839]
[1752286476967,9.491,163.58,163.57,3.3100839]
[1752286478169,3.38,163.58,163.57,3.3100839]
[1752286478568,6.1108,163.59,163.57,3.3100839]
[1752286478768,9.4908,163.59,163.57,3.3100839]
[1752286487678,6.1108,163.59,163.57,3.3100839]
[1752286487881,3.44,163.58,163.57,3.3100839]
[1752286488283,6.1108,163.59,163.57,3.3100839]
[1752286488485,9.5508,163.59,163.57,3.3100839]
[1752286489484,6.1108,163.59,163.57,3.3100839]
[1752286489682,3.44,163.58,163.57,3.3100839]
[1752286489879,9.551,163.58,163.57,3.3100839]
[1752286490078,3.44,163.58,163.57,3.3100839]
[1752286492086,9.551,163.58,163.57,3.3100839]
[1752286495485,9.551,163.58,163.57,0.0400839]
[1752286495789,3.44,163.58,163.54,3.31]
[1752286496086,3.44,163.55,163.54,3.31]
[1752286496292,9.5521,163.55,163.54,3.31]
[1752286497887,11.96474961,163.55,163.54,3.31]
[1752286499985,6.1127,163.54,163.52,5.14385799]
[1752286500186,0.04027186,163.56,163.52,5.14385799]
[1752286500388,5.85293521,163.53,163.48,6.82696337]
[1752286500586,8.52683521,163.51,163.49,3.31]
[1752286500790,3.44,163.5,163.49,3.31]
[1752286501890,8.56843441,163.51,163.49,3.31]
[1752286502087,0.0415992,163.51,163.49,3.31]
[1752286502890,0.0415992,163.51,163.5,11.83693521]
[1752286503490,5.85293521,163.55,163.53,3.31]
[1752286503684,2.41293521,163.55,163.53,3.31]
[1752286503890,5.85293521,163.55,163.53,3.31]
[1752286504389,3.44,163.55,163.53,3.31]
[1752286504591,5.85293521,163.56,163.53,3.31]
[1752286504991,8.52493521,163.56,163.53,9.4229]
[1752286505194,11.96493521,163.56,163.53,6.1129]
[1752286505391,11.96493521,163.56,163.54,3.31]
[1752286506389,3.44,163.56,163.54,9.4224]
[1752286506689,5.85293521,163.58,163.55,3.31]
[1752286507083,9.5513,163.58,163.56,3.31]
[1752286508390,3.44,163.58,163.56,3.31]
[1752286509495,3.44,163.57,163.56,3.31]
[1752286513790,9.5514,163.57,163.56,3.31]
[1752286515488,6.1121,163.56,163.54,3.25]
[1752286515699,2.41293521,163.57,163.52,8.57096377]
[1752286515996,3.47,163.54,163.52,0.04492856]
[1752286516383,3.47,163.54,163.53,3.25]
[1752286517295,6.1129,163.53,163.52,3.29492856]
[1752286517488,3.47,163.53,163.52,3.29492856]
[1752286517689,3.47,163.53,163.52,0.04492856]
[1752286517990,11.99651215,163.53,163.52,0.04492856]
[1752286519696,3.47,163.53,163.52,3.29492856]
[1752286519997,9.5826,163.54,163.52,3.29492856]
[1752286521386,3.47,163.54,163.52,3.29492856]
[1752286521593,9.5829,163.53,163.52,3.29492856]
[1752286522995,11.99651215,163.53,163.52,0.04492856]
[1752286523397,3.47,163.52,163.49,3.25]
[1752286523785,6.1139,163.51,163.5,3.25]
[1752286523989,9.5839,163.51,163.5,3.25]
[1752286530105,3.47,163.51,163.5,3.25]
[1752286531010,0.04297763,163.52,163.5,3.25]
[1752286531211,3.51297763,163.52,163.5,3.25]
[1752286531411,0.04297763,163.52,163.5,3.25]
[1752286531915,3.51297763,163.52,163.5,3.25]
[1752286533007,0.04297763,163.52,163.5,3.25]
[1752286533308,0.04297763,163.52,163.51,3.25]
[1752286535410,3.51297763,163.52,163.51,3.25]
[1752286536410,0.04297763,163.52,163.51,3.25]
[1752286539014,0.04297763,163.52,163.51,9.3636]
[1752286543016,0.04297763,163.52,163.51,3.25]
[1752286543218,3.51297763,163.52,163.51,3.25]
[1752286543415,9.62627763,163.52,163.51,3.25]
[1752286544018,3.51297763,163.52,163.51,3.25]
[1752286544708,9.62627763,163.52,163.51,3.25]
[1752286547716,3.51297763,163.52,163.51,3.25]
[1752286547912,0.04297763,163.52,163.51,3.25]
[1752286562820,0.04297763,163.52,163.51,9.3636]
[1752286563020,3.45,163.56,163.51,7.56171333]
[1752286563320,3.45,163.56,163.52,3.25]
[1752286563716,9.5619,163.56,163.54,3.25]
[1752286564719,6.1119,163.56,163.54,3.25]
[1752286565722,6.1115,163.57,163.55,3.25]
[1752286566722,9.5615,163.57,163.55,3.25]
[1752286567224,6.1115,163.57,163.55,3.25]
[1752286568121,9.5615,163.57,163.55,3.25]
[1752286568724,3.45,163.57,163.55,3.25]
[1752286570027,9.5614,163.57,163.55,3.25]
[1752286570722,3.45,163.57,163.55,3.25]
[1752286571024,175.66,163.59,163.56,6.1118]
[1752286571227,179.11,163.59,163.57,3.25]
[1752286571825,3.45,163.58,163.57,3.25]
[1752286572525,179.11,163.59,163.58,6.111]
[1752286572721,179.11,163.59,163.58,3.25]
[1752286574129,185.2206,163.59,163.58,3.25]
[1752286577832,179.11,163.59,163.58,3.25]
[1752286578332,175.66,163.59,163.58,3.25]
[1752286578841,175.66,163.59,163.58,9.361]
[1752286579037,3.49,163.62,163.59,3.47]
[1752286579335,2.41154436,163.63,163.59,3.47]
[1752286579336,3.49,163.6,163.59,3.47]
[1752286580339,3.49,163.6,163.59,9.5806]
[1752286582244,179.07,163.63,163.6,3.47]
[1752286582441,179.07,163.63,163.6,5.88154436]
[1752286582637,175.58,163.63,163.61,3.47]
[1752286582844,175.58,163.63,163.61,9.5798]
[1752286583140,179.07,163.63,163.62,3.47]
[1752286583737,185.1791,163.63,163.62,3.47]
[1752286586745,179.07,163.63,163.62,3.47]
[1752286587547,179.07,163.63,163.62,5.88154436]
[1752286587744,175.58,163.63,163.62,11.99104436]
[1752286587951,175.58,163.63,163.62,9.5795]
[1752286588248,175.58,163.63,163.62,5.88154436]
[1752286589352,175.58,163.63,163.62,11.99104436]
[1752286590850,175.58,163.63,163.62,5.88154436]
[1752286593156,175.58,163.63,163.62,11.99104436]
[1752286593649,179.01,163.66,163.62,2.41154436]
[1752286593854,179.01,163.66,163.65,3.47]
[1752286595152,185.118,163.66,163.65,3.47]
[1752286595753,185.118,163.66,163.64,2.41154436]
[1752286596054,3.49,163.65,163.64,5.88154436]
[1752286598758,3.49,163.65,163.64,11.99034436]
[1752286600157,3.49,163.65,163.64,3.47]
[1752286602064,9.5984,163.65,163.64,3.47]
[1752286612964,3.49,163.65,163.64,3.47]
[1752286618568,3.55,163.64,163.61,3.33]
[1752286618771,3.55,163.62,163.61,3.33]
[1752286619273,9.6595,163.62,163.61,3.33]
[1752286619475,3.55,163.62,163.61,3.33]
[1752286620278,9.6595,163.62,163.61,3.33]
[1752286623971,3.55,163.62,163.6,3.33]
[1752286624172,3.55,163.62,163.59,3.33]
[1752286624368,3.55,163.62,163.59,3.37068866]
[1752286624775,3.55,163.6,163.59,3.37068866]
[1752286624972,179.01,163.6,163.59,3.37068866]
[1752286625167,185.1203,163.6,163.59,3.37068866]
[1752286628577,179.01,163.6,163.59,3.37068866]
[1752286629673,185.1203,163.6,163.59,3.37068866]
[1752286631779,3.55,163.64,163.59,3.37068866]
[1752286631974,3.55,163.6,163.59,0.04068866]
[1752286632370,6.1115,163.57,163.56,3.33]
[1752286632575,9.6615,163.57,163.56,3.33]
[1752286633078,3.55,163.54,163.53,3.33]
[1752286633279,6.1122,163.55,163.53,3.33]
[1752286633478,9.6622,163.55,163.53,3.33]
[1752286633683,3.55,163.55,163.53,3.33]
[1752286633979,12.11948935,163.56,163.53,3.33]
[1752286634477,8.56948935,163.56,163.53,3.33]
[1752286634680,3.55,163.55,163.53,3.33]
[1752286635080,8.56948935,163.56,163.53,3.33]
[1752286635283,12.13948935,163.56,163.53,3.33]
[1752286635482,8.56948935,163.56,163.53,3.33]
[1752286635681,3.57,163.55,163.53,3.33]
[1752286636284,8.56948935,163.56,163.53,3.33]
[1752286636474,12.13948935,163.56,163.53,3.33]
[1752286637084,8.56948935,163.56,163.53,3.33]
[1752286637282,3.57,163.54,163.53,3.33]
[1752286641589,9.6825,163.54,163.53,3.33]
[1752286650301,6.1125,163.54,163.53,3.33]
[1752286650503,9.6825,163.54,163.53,3.33]
[1752286650799,9.6825,163.54,163.52,0.03865939]
[1752286650800,9.6829,163.53,163.52,0.03865939]
[1752286651493,9.6829,163.53,163.52,3.58865939]
[1752286651695,3.57,163.53,163.52,3.58865939]
[1752286652198,9.6829,163.53,163.52,3.58865939]
[1752286653900,3.57,163.54,163.52,3.58865939]
[1752286654199,0.04656884,163.56,163.54,3.55]
[1752286654399,0.04656884,163.56,163.55,5.96297391]
[1752286655502,0.04656884,163.56,163.55,5.96120723]
[1752286656105,0.04656884,163.56,163.55,12.07330723]
[1752286658007,175.54,163.61,163.59,3.55]
[1752286658504,179.11,163.61,163.59,3.55]
[1752286658705,3.57,163.6,163.58,2.41120723]
[1752286659105,9.6805,163.6,163.58,2.41120723]
[1752286659307,9.6805,163.6,163.59,3.55]
[1752286659906,181.65,163.61,163.59,3.55]
[1752286660302,3.57,163.6,163.57,0.04169445]
[1752286660603,9.681,163.58,163.57,0.04169445]
[1752286661004,9.681,163.58,163.57,3.59169445]
[1752286663109,9.72575542,163.59,163.57,3.59169445]
[1752286663309,6.15575542,163.59,163.57,3.59169445]
[1752286663504,0.04495542,163.59,163.57,3.59169445]
[1752286665103,6.15565542,163.59,163.57,3.59169445]
[1752286665607,0.04495542,163.59,163.57,3.59169445]
[1752286665815,0.04495542,163.59,163.57,9.70289445]
[1752286666002,0.04495542,163.59,163.58,3.42]
[1752286666910,0.04495542,163.59,163.58,9.531]
[1752286668414,6.1095,163.63,163.61,3.42]
[1752286668717,3.59,163.63,163.61,3.42]
[1752286670114,9.6994,163.63,163.61,3.42]
[1752286672815,6.1095,163.62,163.61,3.42]
[1752286673015,9.6995,163.62,163.61,3.42]
[1752286675521,6.1095,163.62,163.61,3.42]
[1752286675927,9.6995,163.62,163.61,3.42]
[1752286676729,6.1093,163.63,163.61,3.42]
[1752286677031,9.6993,163.63,163.61,3.42]
[1752286681132,3.59,163.62,163.61,3.42]
[1752286681526,9.6995,163.62,163.61,3.42]
[1752286682231,3.59,163.62,163.61,3.42]
[1752286682535,6.1092,163.63,163.61,3.42]
[1752286682733,9.6992,163.63,163.61,3.42]
[1752286687634,6.1092,163.63,163.61,3.42]
[1752286687830,3.59,163.62,163.61,3.42]
[1752286688135,6.1092,163.63,163.61,3.42]
[1752286688327,9.6992,163.63,163.61,3.42]
[1752286688738,6.1092,163.63,163.61,3.42]
[1752286689035,3.59,163.62,163.61,3.42]
[1752286689334,9.6995,163.62,163.61,3.42]